bitfinex/quotes_ETHUSD_20220201
["timestamp","ask_amount","ask_price","bid_price","bid_amount"]
[1643727026445,0.18693201,2781.7,2781.1,0.01]
[1643727026446,0.18693201,2781.6,2781.1,0.01]
[1643727026643,0.18693201,2781.6,2780.6,2.07726544]
[1643727026844,0.18693201,2782.4,2781.3,0.01224686]
[1643727027044,0.00285537,2782.5,2781.5,0.0182]
[1643727027248,0.00285537,2782.5,2781.5,3.16821658]
[1643727027442,1.1107436,2783.3,2781.5,3.16821658]
[1643727027443,0.18693201,2783.1,2781.5,3.16821658]
[1643727027645,0.55107233,2783.1,2781.6,0.428]
[1643727027841,1.1107436,2783.3,2781.6,0.428]
[1643727027842,0.43938263,2782.6,2781.6,0.428]
[1643727028046,1.1107436,2783.3,2780.9,20.99]
[1643727028047,0.81938478,2782.0,2780.9,20.99]
[1643727028387,0.91084772,2782.9,2780.9,20.99]
[1643727028581,0.18693201,2782.4,2781.3,0.01245196]
[1643727028781,0.18693201,2782.4,2781.2,0.428]
[1643727028983,0.01205525,2782.6,2781.3,0.84967]
[1643727029184,0.01205525,2782.6,2781.2,0.428]
[1643727029387,0.01591831,2783.2,2781.2,0.428]
[1643727029388,0.18693201,2782.1,2781.2,1.11873168]
[1643727029585,0.18693201,2782.1,2781.3,20.99]
[1643727029788,0.18693201,2781.9,2781.3,20.99]
[1643727029995,2.08012081,2783.2,2780.9,0.428]
[1643727029996,0.18693201,2781.4,2780.9,0.428]
[1643727030194,0.18693201,2781.4,2780.5,5.5804035]
[1643727030195,0.13693201,2781.0,2780.5,2.299903]
[1643727030392,0.13693201,2781.2,2780.5,2.299903]
[1643727030588,0.01286481,2781.9,2780.5,2.299903]
[1643727030589,0.69947985,2780.8,2780.5,2.299903]
[1643727030787,0.47900069,2780.6,2779.2,0.0123709]
[1643727030994,0.13693201,2779.9,2779.3,20.99]
[1643727031491,0.13693201,2779.6,2779.3,2.78119821]
[1643727031705,1.0,2780.2,2779.4,1.49379799]
[1643727031891,1.01743132,2780.2,2778.9,0.13819997]
[1643727032153,0.41319298,2779.4,2778.6,0.01]
[1643727032341,0.43263382,2779.4,2778.6,0.01]
[1643727032542,0.43263382,2779.4,2778.2,3.5]
[1643727032543,0.428,2779.3,2778.2,3.5]
[1643727032742,0.428,2779.3,2777.5,0.01268378]
[1643727032939,0.01944084,2779.4,2777.7,0.13819997]
[1643727033137,0.00285537,2779.8,2778.2,21.002952]
[1643727033138,0.01518835,2779.6,2778.2,21.002952]
[1643727033342,0.00285537,2779.8,2778.2,21.002952]
[1643727033541,2.07726544,2780.1,2778.2,21.002952]
[1643727033740,2.50812081,2780.3,2778.2,21.002952]
[1643727033943,0.89942,2780.0,2778.2,0.012952]
[1643727034148,1.79922,2779.6,2778.2,0.012952]
[1643727034347,3.50526544,2779.5,2777.7,0.13819997]
[1643727034546,3.51929312,2779.5,2777.7,0.08819997]
[1643727034745,0.44202768,2779.5,2777.7,0.08819997]
[1643727034948,0.44202768,2779.5,2777.9,0.01247161]
[1643727035148,0.91299203,2779.9,2777.9,0.01247161]
[1643727035350,2.07726544,2779.8,2778.1,0.7256329]
[1643727035647,2.07726544,2779.8,2777.9,0.11490972]
[1643727035910,3.90989635,2779.8,2777.9,0.01247161]
[1643727036104,0.41008745,2778.9,2777.7,0.08819997]
[1643727036306,0.8997,2779.1,2777.7,0.08819997]
[1643727036709,2.07726544,2779.0,2777.7,0.08819997]
[1643727036907,0.8997,2779.1,2777.7,0.08819997]
[1643727037108,2.0906111,2779.6,2777.9,0.01273109]
[1643727037308,2.97679544,2779.6,2778.1,0.4126748]
[1643727037506,2.97679544,2779.6,2777.9,5.94421703]
[1643727037709,2.97679544,2779.6,2777.7,0.08819997]
[1643727037710,1.0,2779.3,2777.7,0.08819997]
[1643727037912,1.7997,2779.1,2777.7,0.0710563]
[1643727038108,2.07726544,2779.0,2777.7,0.0710563]
[1643727038308,1.8349571,2779.1,2777.7,0.0710563]
[1643727038511,0.89985,2779.0,2778.0,0.32794476]
[1643727038809,0.74435637,2779.0,2778.0,0.32794476]
[1643727039210,0.74435637,2779.0,2778.0,0.3]
[1643727039409,0.74435637,2779.0,2777.9,0.6]
[1643727039635,0.74435637,2779.0,2777.8,0.3]
[1643727039834,0.74435637,2779.0,2777.7,0.17385749]
[1643727040234,0.44691298,2778.8,2777.7,0.0710563]
[1643727040440,0.03772765,2779.2,2777.7,0.0710563]
[1643727040636,0.01240166,2779.4,2777.7,0.0710563]
[1643727040840,0.01240166,2779.4,2777.7,21.16385749]
[1643727041037,0.08162971,2779.7,2778.0,0.01268295]
[1643727041242,0.01283283,2779.4,2777.7,0.0710563]
[1643727041448,0.01879699,2779.2,2777.3,5.9323199]
[1643727041643,0.01218908,2778.8,2777.3,3.15071618]
[1643727041839,0.01218908,2778.8,2777.1,0.10280119]
[1643727041840,0.0126476,2778.7,2777.1,0.10280119]
[1643727042041,0.01218908,2778.8,2777.1,0.10280119]
[1643727042242,0.90787639,2778.0,2777.1,0.10280119]
[1643727043140,0.90787639,2778.0,2776.9,0.0710563]
[1643727043404,0.67174886,2777.5,2776.9,0.0710563]
[1643727043595,0.67174886,2777.5,2776.1,2.8204061]
[1643727043790,0.67174886,2777.5,2776.2,3.5]
[1643727043791,0.68783229,2777.5,2776.2,3.5]
[1643727043992,0.68783229,2777.5,2776.0,0.18738257]
[1643727044193,0.68783229,2777.5,2775.7,0.44924571]
[1643727044194,0.70497596,2777.5,2775.7,0.44924571]
[1643727044388,0.74926865,2776.9,2775.7,0.01252552]
[1643727044591,0.01714367,2777.5,2776.0,0.18751335]
[1643727044791,1.07802367,2777.5,2776.4,0.01206065]
[1643727044993,1.07802367,2777.5,2776.0,0.18751335]
[1643727045190,1.07802367,2777.5,2776.3,3.15901559]
[1643727045191,3.11470477,2777.5,2776.3,3.15901559]
[1643727045396,0.00407487,2777.4,2776.3,0.01]
[1643727045595,0.00522076,2777.4,2776.3,0.01]
[1643727045993,0.00522076,2777.4,2776.9,0.01268358]
[1643727046194,2.0366811,2778.3,2776.9,0.01268358]
[1643727046392,2.0366811,2778.3,2776.3,0.01867132]
[1643727046393,3.24812804,2778.3,2776.3,0.01867132]
[1643727046618,0.68947376,2777.4,2776.4,0.43775897]
[1643727046792,2.0366811,2778.1,2776.4,0.43775897]
[1643727046992,2.0366811,2778.1,2776.4,3.14899983]
[1643727047238,2.0366811,2778.1,2776.3,0.01]
[1643727047440,2.0366811,2778.1,2776.1,0.01204877]
[1643727047642,2.0366811,2778.1,2776.1,3.16182859]
[1643727047841,2.0366811,2778.1,2776.2,1.0]
[1643727048043,0.84327,2777.7,2776.9,0.32327594]
[1643727048247,0.84327,2777.7,2776.9,0.3]
[1643727048248,1.85415,2777.7,2776.9,0.3]
[1643727048643,4.08465554,2777.7,2776.2,3.670166]
[1643727048842,4.08465554,2777.7,2776.1,0.01]
[1643727049045,0.90033,2777.3,2776.1,0.01]
[1643727049244,1.85415,2777.7,2776.3,0.01292354]
[1643727049653,0.01714367,2778.4,2777.1,0.0182]
[1643727049846,0.04032633,2779.2,2777.2,0.428]
[1643727049847,1.79953,2779.2,2777.2,0.428]
[1643727050051,0.89969,2779.4,2777.7,0.01233694]
[1643727050250,0.83680317,2780.2,2778.9,0.66462915]
[1643727050445,0.83680317,2780.2,2778.4,0.01234424]
[1643727050446,0.8807939,2778.6,2778.4,0.01234424]
[1643727050649,0.00285885,2780.0,2778.6,0.3]
[1643727050650,3.9408311,2779.8,2778.6,0.3]
[1643727050894,1.90415,2779.8,2778.6,0.3]
[1643727051096,1.90415,2779.8,2778.5,0.428]
[1643727051492,0.95387565,2779.6,2778.9,0.32401743]
[1643727051701,0.95387565,2779.6,2778.5,0.428]
[1643727051898,0.95387565,2779.6,2777.9,0.5]
[1643727051899,0.0127973,2779.4,2777.9,0.5]
[1643727052097,1.0736773,2779.4,2777.9,1.1]
[1643727052297,2.0366811,2779.3,2777.9,1.1]
[1643727052500,0.84327,2779.2,2777.9,1.1]
[1643727052698,0.86709198,2779.1,2778.2,0.43872942]
[1643727053100,0.86709198,2779.1,2777.9,2.1]
[1643727053101,2.17801599,2779.0,2777.9,2.1]
[1643727053306,2.17801599,2779.0,2777.4,0.0182]
[1643727053307,0.01225157,2778.8,2777.4,0.0182]
[1643727053902,1.06088,2778.7,2777.5,0.01268848]
[1643727054101,1.06088,2778.7,2777.6,20.99]
[1643727054300,1.06088,2778.7,2777.7,0.428]
[1643727054501,1.0,2779.5,2777.7,0.428]
[1643727054760,0.43350738,2778.8,2777.6,0.34000281]
[1643727054959,0.04806781,2778.9,2777.4,0.0182]
[1643727055256,0.01262471,2778.9,2777.4,0.0182]
[1643727055456,0.01262471,2778.9,2777.3,20.99]
[1643727055659,0.01262471,2778.9,2777.3,20.97980084]
[1643727056059,0.43563678,2778.6,2777.4,0.37647636]
[1643727056258,0.43563678,2778.6,2777.3,20.97980084]
[1643727056457,0.72006349,2778.2,2777.3,20.97980084]
[1643727057057,0.01262471,2778.9,2777.3,20.97980084]
[1643727057857,0.01262471,2778.9,2778.0,0.44526167]
[1643727058061,0.03862136,2779.0,2778.0,0.44526167]
[1643727058266,6.65465885,2779.8,2778.1,2.67116962]
[1643727058488,0.94315635,2779.9,2778.1,2.68991392]
[1643727058690,0.94315635,2779.9,2778.2,1.0]
[1643727058691,1.51991483,2779.8,2778.2,1.0]
[1643727058888,1.51991483,2779.8,2778.2,1.3]
[1643727059086,1.31575261,2779.4,2778.2,0.3]
[1643727059489,1.31575261,2779.4,2778.4,0.77404609]
[1643727059490,0.95020855,2779.4,2778.4,0.77404609]
[1643727059686,0.95020855,2779.4,2778.4,1.07404609]
[1643727059889,0.89955,2779.9,2778.4,5.54491942]
[1643727060103,0.03657355,2780.2,2778.5,0.428]
[1643727060294,1.79862,2780.0,2778.5,1.428]
[1643727060493,0.41407337,2779.8,2778.5,1.728]
[1643727060693,0.41407337,2779.8,2778.5,1.3]
[1643727060896,0.41407337,2779.8,2778.5,0.3]
[1643727061093,0.41407337,2779.8,2778.1,20.99]
[1643727061094,0.41407337,2779.8,2778.2,21.99]
[1643727061301,0.04755179,2779.9,2778.2,22.29]
[1643727061494,0.89931,2779.8,2778.7,0.73940957]
[1643727061696,0.79931,2779.8,2778.7,0.73940957]
[1643727061892,0.79931,2779.8,2778.8,21.29]
[1643727062137,0.79931,2779.8,2778.9,20.99]
[1643727062339,0.79931,2779.8,2778.6,0.428]
[1643727062340,0.34866798,2779.7,2778.6,0.428]
[1643727062537,0.34866798,2779.7,2778.4,1.0]
[1643727062538,2.02185794,2779.6,2778.4,1.0]
[1643727062737,2.02185794,2779.6,2777.6,0.01206083]
[1643727062738,1.79908,2779.2,2777.6,21.00206083]
[1643727062935,1.79908,2779.2,2777.6,25.17235885]
[1643727063135,2.02185794,2779.1,2777.4,2.6687799]
[1643727063341,0.60763,2779.6,2779.5,6.12895367]
[1643727063342,1.88383891,2779.6,2779.5,6.12895367]
[1643727063536,0.93743616,2778.5,2777.6,2.03409934]
[1643727063735,0.93743616,2778.5,2777.5,0.72441968]
[1643727063939,1.0,2779.3,2777.5,0.72441968]
[1643727064139,1.57152992,2779.6,2777.6,2.02185794]
[1643727064140,1.27152992,2779.6,2777.6,2.02185794]
[1643727064346,0.89975,2779.0,2777.6,2.02185794]
[1643727064537,0.89975,2779.0,2777.7,20.99]
[1643727064739,0.89975,2779.0,2777.8,1.0]
[1643727064938,0.77712542,2778.9,2777.8,1.0]
[1643727065141,0.6799091,2778.4,2777.9,0.3]
[1643727065339,0.6799091,2778.4,2777.5,1.04015257]
[1643727065340,0.6799091,2778.4,2777.5,0.61215257]
[1643727065640,0.6799091,2778.4,2777.5,0.3]
[1643727065641,0.89983,2778.4,2777.5,0.3]
[1643727065890,0.89983,2778.4,2777.0,0.0892563]
[1643727066096,0.91697367,2778.4,2777.0,0.0710563]
[1643727066391,0.91697367,2778.4,2775.7,0.1602]
[1643727066392,0.18904984,2778.3,2775.7,0.1602]
[1643727066599,0.18904984,2778.3,2775.7,3.5]
[1643727066600,0.85735701,2776.5,2775.7,3.5]
[1643727066991,1.23857541,2776.5,2775.7,3.5]
[1643727067392,1.24815442,2776.5,2774.8,2.67115408]
[1643727067593,2.07754982,2776.4,2774.8,2.67115408]
[1643727067988,0.80854058,2775.6,2774.8,3.06713752]
[1643727068196,0.80854058,2775.6,2774.4,0.5182]
[1643727068399,0.80854058,2775.6,2774.3,0.01236683]
[1643727068400,0.8180368,2775.6,2774.3,0.01236683]
[1643727068599,0.80854058,2775.6,2774.3,2.68340329]
[1643727068791,0.80854058,2775.6,2774.3,2.78627401]
[1643727068993,0.80854058,2775.6,2774.3,6.9560573]
[1643727069198,0.32430023,2775.1,2774.3,6.9560573]
[1643727069392,0.85376846,2775.0,2774.3,6.9560573]
[1643727069637,0.01714367,2775.7,2774.3,4.23502084]
[1643727070642,0.43192359,2774.8,2774.0,0.20009435]
[1643727070848,0.43192359,2774.8,2774.0,0.01266716]
[1643727070849,0.0090502,2774.7,2774.0,0.01266716]
[1643727071046,0.0090502,2774.7,2773.7,0.10287072]
[1643727071047,0.44770438,2774.8,2773.6,0.01]
[1643727071343,0.44770438,2774.8,2773.4,1.12307326]
[1643727071344,0.43192359,2774.8,2773.4,1.12307326]
[1643727071544,0.89345717,2774.2,2773.4,1.12307326]
[1643727072344,2.07754982,2774.1,2773.4,1.12307326]
[1643727072549,2.07754982,2774.1,2773.4,1.1107436]
[1643727072550,1.0626,2774.1,2773.4,1.1107436]
[1643727073404,1.80241,2774.5,2773.4,1.1107436]
[1643727073594,0.90109,2774.8,2773.4,1.1107436]
[1643727074199,0.79568011,2775.4,2774.3,0.78793723]
[1643727074406,0.79568011,2775.4,2773.9,0.0126774]
[1643727074407,0.79568011,2775.4,2773.9,0.4406774]
[1643727074598,0.79568011,2775.4,2773.9,0.44820235]
[1643727074797,0.79568011,2775.4,2774.0,0.10275266]
[1643727075295,0.01714367,2775.7,2774.0,0.10275266]
[1643727075499,0.01714367,2775.7,2774.0,0.13957933]
[1643727075697,0.01714367,2775.7,2774.6,0.01285209]
[1643727076097,0.01714367,2775.7,2774.7,0.10271768]
[1643727076396,0.88343767,2775.6,2774.6,0.01285209]
[1643727077337,0.88343767,2775.6,2774.1,1.428]
[1643727077540,2.28276468,2775.5,2774.0,4.17003736]
[1643727077940,0.85112072,2775.1,2774.0,5.02847506]
[1643727078140,0.85112072,2775.1,2774.1,0.35720738]
[1643727078342,0.85112072,2775.1,2774.0,5.02847506]
[1643727078343,0.85112072,2775.1,2774.0,4.17003736]
[1643727078543,0.85112072,2775.1,2773.2,0.18744764]
[1643727078544,0.90114,2774.6,2773.2,0.18744764]
[1643727078745,0.91755201,2774.6,2773.2,0.18744764]
[1643727078954,0.91755201,2774.6,2773.4,1.1107436]
[1643727079345,0.86026412,2773.7,2773.4,1.1107436]
[1643727079545,0.44164806,2774.9,2773.4,1.1107436]
[1643727079754,0.91165245,2774.6,2773.4,1.1107436]
[1643727079956,0.01220704,2775.1,2773.4,1.1107436]
[1643727080146,0.428,2775.5,2773.4,1.1107436]
[1643727080345,0.428,2775.5,2773.5,0.3]
[1643727080545,0.74870583,2774.3,2773.5,0.3]
[1643727081403,0.91359175,2775.2,2773.5,2.72321112]
[1643727081404,0.90098,2775.2,2773.5,2.72321112]
[1643727081595,0.90098,2775.2,2773.5,4.50563848]
[1643727081897,0.90098,2775.2,2773.6,1.03712929]
[1643727082096,0.90098,2775.2,2773.6,1.33712929]
[1643727082301,2.07517592,2775.2,2774.1,0.72757332]
[1643727082499,0.01714367,2775.7,2774.1,0.72757332]
[1643727082500,0.01714367,2775.7,2774.1,0.76702445]
[1643727082702,0.01714367,2775.7,2774.6,0.01292505]
[1643727082900,0.13819997,2775.8,2774.7,0.43319241]
[1643727083096,0.13819997,2775.8,2774.8,20.99]
[1643727083300,0.01211391,2776.7,2774.9,1.0]
[1643727083495,0.01211391,2776.7,2774.9,1.6]
[1643727083496,1.26975899,2775.7,2774.9,1.6]
[1643727083697,1.26975899,2775.7,2774.9,0.6]
[1643727083901,1.26975899,2775.7,2774.8,1.3]
[1643727084098,1.26975899,2775.7,2774.8,0.6]
[1643727084298,1.26975899,2775.7,2774.8,0.3]
[1643727084500,1.26975899,2775.7,2774.6,0.31292505]
[1643727084734,1.26975899,2775.7,2774.6,21.30292505]
[1643727085135,0.82893233,2775.7,2774.8,20.99]
[1643727085351,1.80152,2776.3,2774.9,1.0]
[1643727085540,0.90061,2776.5,2775.0,20.99]
[1643727085740,2.08966373,2776.7,2775.1,1.0]
[1643727085942,2.07754982,2776.6,2775.1,1.0]
[1643727086138,0.3469837,2776.0,2775.2,20.99]
[1643727086339,0.3469837,2776.0,2775.3,1.3]
[1643727086539,0.3469837,2776.0,2775.3,1.6]
[1643727086739,0.38719746,2775.4,2775.3,0.3]
[1643727086944,0.38719746,2775.4,2775.1,0.3]
[1643727087139,0.01283119,2775.6,2774.4,0.6]
[1643727087341,0.94894213,2776.1,2774.5,0.04860675]
[1643727087544,0.94894213,2776.1,2774.5,0.11966305]
[1643727087740,0.94894213,2776.1,2774.9,1.37063638]
[1643727087940,0.94894213,2776.1,2775.0,20.99]
[1643727088240,2.75229999,2776.8,2775.2,0.01215861]
[1643727088241,0.41586969,2776.3,2775.2,0.01215861]
[1643727088489,0.41586969,2776.3,2775.2,21.00215861]
[1643727088693,0.41586969,2776.3,2775.2,0.01215861]
[1643727088998,0.37240808,2775.8,2775.3,1.0]
[1643727089193,0.37240808,2775.8,2775.3,0.3]
[1643727089593,0.75409403,2775.9,2775.1,0.3]
[1643727089796,0.20035747,2776.8,2775.0,1.6]
[1643727089997,2.00135747,2776.8,2775.1,21.02483353]
[1643727090200,0.18819996,2776.8,2775.5,0.03103405]
[1643727090400,0.18819996,2776.8,2775.5,0.45903405]
[1643727090600,0.39947879,2776.6,2775.6,20.99]
[1643727090795,0.39947879,2776.6,2775.7,1.0]
[1643727090998,0.39947879,2776.6,2775.8,20.99]
[1643727090999,0.82146333,2776.4,2775.8,20.99]
[1643727091196,0.82146333,2776.4,2775.7,1.0]
[1643727091399,0.82146333,2776.4,2775.8,0.3]
[1643727091598,0.82146333,2776.4,2775.7,0.3]
[1643727091798,0.82146333,2776.4,2775.5,0.33103405]
[1643727091998,0.82146333,2776.4,2775.5,0.63103405]
[1643727092238,0.82146333,2776.4,2775.5,0.33103405]
[1643727092845,0.71864952,2775.9,2775.5,0.03103405]
[1643727093044,0.71864952,2775.9,2775.1,0.01]
[1643727093245,0.71864952,2775.9,2774.8,20.99]
[1643727094043,0.71864952,2775.9,2775.0,20.99]
[1643727094244,0.35501594,2775.7,2774.7,0.01255658]
[1643727094442,0.35501594,2775.7,2774.2,5.07200758]
[1643727094644,0.71864952,2775.9,2774.3,23.41836415]
[1643727094951,0.01275827,2776.2,2774.3,23.40180469]
[1643727095243,0.18819996,2776.8,2774.9,0.0182]
[1643727095642,1.80105,2776.7,2774.9,2.46062007]
[1643727095887,0.90444392,2776.1,2775.0,0.89866661]
[1643727096288,0.90444392,2776.1,2775.0,1.49866661]
[1643727096485,0.90444392,2776.1,2775.0,24.01312019]
[1643727096686,0.90444392,2776.1,2774.8,0.44039655]
[1643727096687,0.41495013,2775.3,2774.8,0.01239655]
[1643727096888,0.41495013,2775.3,2774.5,0.01]
[1643727097088,0.41495013,2775.3,2773.8,0.5182]
[1643727097285,0.41495013,2775.3,2773.9,20.99]
[1643727097690,0.94326803,2774.9,2774.1,0.31779691]
[1643727097887,0.94326803,2774.9,2774.2,20.99]
[1643727098287,0.94326803,2774.9,2774.3,21.99]
[1643727098487,0.01229901,2775.6,2774.3,21.99]
[1643727098697,0.01229901,2775.6,2774.4,0.3]
[1643727098895,0.90076,2775.9,2774.5,20.99]
[1643727099094,0.90076,2775.9,2774.5,20.94]
[1643727099293,0.90076,2775.9,2774.7,20.94]
[1643727099493,0.74813431,2775.0,2774.6,1.3]
[1643727099742,0.74813431,2775.0,2774.5,1.3]
[1643727100146,0.90076,2775.9,2774.4,0.71568193]
[1643727100347,0.90076,2775.9,2774.4,4.58678624]
[1643727100548,0.36067337,2775.7,2774.4,4.87382199]
[1643727100752,0.36067337,2775.7,2774.4,4.17110431]
[1643727101150,0.7454765,2775.2,2773.9,2.63787968]
[1643727101348,0.7454765,2775.2,2773.9,0.10271768]
[1643727101749,0.7454765,2775.2,2774.3,21.30634723]
[1643727102250,0.7454765,2775.2,2773.9,0.10271768]
[1643727102460,0.7454765,2775.2,2773.6,0.01]
[1643727102665,0.01295559,2775.0,2773.6,0.01]
[1643727102852,0.44095559,2775.0,2773.4,1.1107436]
[1643727103053,0.17988,2774.9,2773.4,1.1107436]
[1643727103258,0.81951402,2773.9,2773.4,1.1107436]
[1643727104986,0.81951402,2773.9,2773.5,0.3]
[1643727105187,0.81951402,2773.9,2773.4,1.1107436]
[1643727105385,0.01714367,2774.6,2773.4,1.1107436]
[1643727105386,0.1802,2775.0,2773.5,0.01233355]
[1643727105588,0.428,2774.9,2773.5,0.01233355]
[1643727105989,0.31860482,2773.9,2773.5,0.01233355]
[1643727106188,0.7571936,2773.8,2773.5,0.01233355]
[1643727106391,0.7571936,2773.8,2773.4,1.1107436]
[1643727106789,0.7571936,2773.8,2773.4,1.4107436]
[1643727107236,0.90129,2774.2,2773.4,1.4107436]
[1643727108236,0.90129,2774.2,2773.5,0.3]
[1643727108446,1.08934996,2774.6,2773.6,0.99999999]
[1643727108638,1.08934996,2774.6,2773.7,0.1803]
[1643727109236,1.08934996,2774.6,2773.8,0.1802]
[1643727109444,0.92025964,2774.5,2773.8,0.1802]
[1643727109637,1.47785819,2774.6,2773.9,0.1803]
[1643727109638,1.08934996,2774.6,2773.9,0.1803]
[1643727109836,0.18819996,2774.6,2774.0,0.1802]
[1643727110435,0.18819996,2774.6,2774.1,0.1803]
[1643727111093,0.18819996,2774.6,2774.0,0.1802]
[1643727111387,0.91168142,2774.5,2774.0,0.1802]
[1643727111589,0.91168142,2774.5,2773.6,0.1802]
[1643727111787,0.80310794,2774.4,2773.5,0.1802]
[1643727111987,0.91767863,2773.9,2773.5,0.1802]
[1643727112186,0.90134,2773.8,2773.5,0.1802]
[1643727113089,1.24694793,2773.8,2773.5,0.1802]
[1643727113493,0.90134,2773.8,2773.5,0.1802]
[1643727113697,1.99053996,2774.6,2773.7,0.99999999]
[1643727113892,2.64528,2775.3,2773.8,0.1802]
[1643727114090,2.64528,2775.3,2774.1,0.99999999]
[1643727114291,2.64528,2775.3,2774.2,0.1801]
[1643727114493,0.68776256,2774.5,2774.2,0.1801]
[1643727114733,0.68776256,2774.5,2774.1,0.1802]
[1643727114932,0.68776256,2774.5,2773.5,1.1803]
[1643727114933,0.68776256,2774.5,2773.9,0.1802]
[1643727115135,0.68776256,2774.5,2773.6,0.1802]
[1643727115436,2.64528,2775.3,2773.7,0.1803]
[1643727115645,2.64528,2775.3,2773.8,21.00274227]
[1643727115646,0.84327,2775.3,2773.8,21.00274227]
[1643727115838,0.84327,2775.3,2774.9,0.99999999]
[1643727116042,0.84327,2775.3,2774.9,0.1803]
[1643727116738,1.05410601,2776.0,2774.9,0.1803]
[1643727117543,1.05410601,2776.0,2774.9,0.94393885]
[1643727117740,1.05410601,2776.0,2774.9,1.24393885]
[1643727118040,1.05410601,2776.0,2775.0,0.1301]
[1643727118240,1.05410601,2776.0,2775.0,0.4301]
[1643727118496,1.05410601,2776.0,2775.0,0.3]
[1643727118799,1.05410601,2776.0,2774.9,0.1803]
[1643727118800,0.71335377,2776.0,2774.9,0.1803]
[1643727119600,0.71335377,2776.0,2774.8,1.3]
[1643727119799,2.51503377,2776.0,2774.7,0.1803]
[1643727120099,2.51503377,2776.0,2774.5,0.01255059]
[1643727120400,0.71335377,2776.0,2774.7,22.34260572]
[1643727120603,0.71335377,2776.0,2774.9,0.99999999]
[1643727120806,3.31337907,2776.4,2775.1,20.99]
[1643727121007,0.04999999,2776.5,2775.0,0.1803]
[1643727121605,0.3783493,2776.2,2774.8,0.1803]
[1643727121909,0.70041068,2775.5,2774.6,0.01]
[1643727122135,0.70041068,2775.5,2774.6,0.3]
[1643727122338,0.70041068,2775.5,2774.5,0.1803]
[1643727122339,0.70041068,2775.5,2774.5,0.3]
[1643727122539,0.37255119,2775.1,2774.3,0.49299056]
[1643727122739,0.37255119,2775.1,2774.3,0.1803]
[1643727123141,0.77755509,2774.9,2774.3,0.1803]
[1643727123541,0.77755509,2774.9,2773.9,1.3]
[1643727123741,0.35275263,2774.6,2773.9,0.3]
[1643727123952,0.35275263,2774.6,2773.5,7.80582192]
[1643727123953,0.36368799,2774.6,2773.5,0.1803]
[1643727124140,0.36368799,2774.6,2773.4,1.12309101]
[1643727124141,0.35275263,2774.6,2773.4,1.1107436]
[1643727124342,0.428,2774.5,2773.4,1.1107436]
[1643727124542,4.32167352,2773.5,2773.4,1.1107436]
[1643727124744,4.32167352,2773.5,2772.0,1.09016886]
[1643727124745,4.25,2773.4,2772.0,1.09016886]
[1643727124943,4.25,2773.4,2772.0,0.0012774]
[1643727124944,5.13094922,2773.4,2772.0,0.0012774]
[1643727125145,0.01284341,2773.2,2771.6,0.1315774]
[1643727125342,0.01284341,2773.2,2772.0,20.99]
[1643727125343,0.428,2773.1,2772.0,20.99]
[1643727125546,0.72167352,2773.5,2772.5,0.99999999]
[1643727125996,0.72167352,2773.5,2772.1,0.1315774]
[1643727126198,0.72167352,2773.5,2771.9,1.01213103]
[1643727126199,1.80334,2773.4,2771.9,1.01213103]
[1643727126402,1.80334,2773.4,2771.9,1.14370843]
[1643727126601,0.34965077,2772.6,2771.9,1.14370843]
[1643727126801,0.6517,2773.0,2772.4,0.99999999]
[1643727127008,1.98361,2773.8,2771.9,0.14370844]
[1643727127009,0.428,2773.8,2772.9,0.99999999]
[1643727127202,1.06088,2774.1,2773.2,0.99999999]
[1643727127395,1.06088,2774.1,2773.0,1.13157739]
[1643727127396,1.90415,2774.1,2773.0,1.13157739]
[1643727127596,1.90415,2774.1,2773.0,0.99999999]
[1643727127798,1.90415,2774.1,2773.0,1.59999999]
[1643727128000,1.90415,2774.1,2773.0,2.35673275]
[1643727128001,0.71004187,2774.0,2773.0,2.35673275]
[1643727128200,1.90415,2774.1,2773.0,2.35673275]
[1643727128402,1.90415,2774.1,2773.0,1.35673276]
[1643727128601,1.90415,2774.1,2773.1,20.99]
[1643727128904,1.90415,2774.1,2774.0,0.99999999]
[1643727129110,0.32953607,2775.6,2774.5,0.41480622]
[1643727129300,0.72936939,2775.8,2774.6,0.1315774]
[1643727129504,0.9008,2775.6,2774.6,0.01203846]
[1643727129733,0.9008,2775.6,2774.7,1.13157739]
[1643727129935,0.9008,2775.6,2775.0,0.99999999]
[1643727130144,1.80162,2775.9,2775.0,1.73157739]
[1643727130337,0.42847197,2775.9,2775.0,1.73157739]
[1643727130538,0.71663674,2775.6,2775.0,0.7315774]
[1643727130739,0.71663674,2775.6,2775.0,0.3]
[1643727130943,0.71663674,2775.6,2774.0,0.09819997]
[1643727131141,0.0124934,2775.2,2774.0,0.09819997]
[1643727131341,0.40185835,2774.7,2774.0,0.08819997]
[1643727131847,0.67255879,2774.5,2774.0,0.08819997]
[1643727132044,0.67255879,2774.5,2773.5,0.9011392]
[1643727132841,0.67255879,2774.5,2773.6,1.63414]
[1643727133484,0.67255879,2774.5,2773.6,2.63413999]
[1643727133689,0.67255879,2774.5,2773.5,0.9011392]
[1643727133987,0.67255879,2774.5,2773.2,2.702681]
[1643727133988,0.36274255,2774.1,2773.2,0.3]
[1643727134187,0.36274255,2774.1,2773.3,1.0]
[1643727134391,0.36274255,2774.1,2773.2,1.59999999]
[1643727134586,0.36274255,2774.1,2773.2,0.6]
[1643727134790,0.75995844,2773.7,2773.2,1.6]
[1643727134988,0.75995844,2773.7,2772.9,1.10113358]
[1643727135187,0.75995844,2773.7,2773.2,0.3]
[1643727135388,0.75995844,2773.7,2772.9,1.68819997]
[1643727135587,0.75995844,2773.7,2772.9,1.38819997]
[1643727135787,0.75995844,2773.7,2772.9,0.08819997]
[1643727136190,0.90332438,2773.1,2772.9,0.08819997]
[1643727136392,0.90332438,2773.1,2772.7,0.99999999]
[1643727137234,0.90332438,2773.1,2772.4,0.1315774]
[1643727137235,0.90332438,2773.1,2772.4,0.99999999]
[1643727137438,0.90332438,2773.1,2772.2,0.01260231]
[1643727137635,0.90332438,2773.1,2771.9,3.83575179]
[1643727137836,0.90332438,2773.1,2771.9,1.13157739]
[1643727138238,0.72073754,2772.5,2771.9,1.13157739]
[1643727138438,0.90165,2773.3,2771.9,1.16548887]
[1643727138640,0.90165,2773.3,2771.9,1.13157739]
[1643727138837,0.90165,2773.3,2772.1,0.99999999]
[1643727139062,0.90165,2773.3,2772.1,1.90164209]
[1643727139237,0.90165,2773.3,2772.1,1.5016421]
[1643727139441,1.04950238,2773.0,2772.2,20.99]